fUSD/lending_fUSD_20240831
["ID","MTS","AMOUNT","RATE_DAILY","PERIOD"]
[336727233,1725085149838,-500.0,0.00038904,120]
[336727234,1725085149879,-710.47,0.00038904,120]
[336727235,1725085149919,-1026.63,0.00038904,120]
[336727236,1725085149960,-500.0,0.00038904,120]
[336727237,1725085150003,-1312.14,0.00038904,120]
[336727238,1725085150046,-500.0,0.00038904,120]
[336727239,1725085150084,-1653.03,0.00038904,120]
[336727240,1725085150125,-6675.51,0.00038904,120]
[336727241,1725085150164,-500.0,0.00038904,120]
[336727242,1725085150205,-500.0,0.00038904,120]
[336727243,1725085150245,-500.0,0.00038904,120]
[336727244,1725085150285,-500.0,0.00038904,120]
[336727245,1725085150324,-802.15,0.00038904,120]
[336727246,1725085150364,-522.63,0.00038904,120]
[336727247,1725085150404,-500.0,0.00038904,120]
[336727248,1725085150444,-500.0,0.00038904,120]
[336727249,1725085150484,-500.0,0.00038904,120]
[336727250,1725085150525,-520.04,0.00038904,120]
[336727251,1725085150567,-6155.51,0.00038904,120]
[336727252,1725085150610,-2507.7,0.00038904,120]
[336727253,1725085150652,-1148.46,0.00038904,120]
[336727254,1725085150692,-500.0,0.00038904,120]
[336727255,1725085150731,-554.41,0.00038904,120]
[336727256,1725085150772,-1325.16,0.00038904,120]
[336727257,1725085150819,-795.3,0.00038904,120]
[336727258,1725085150861,-2578.35,0.00038904,120]
[336727259,1725085150901,-500.0,0.00038904,120]
[336727260,1725085150942,-1311.27,0.00038904,120]
[336727261,1725085150984,-500.0,0.00038904,120]
[336727262,1725085151027,-500.0,0.00038904,120]
[336727263,1725085151070,-1407.95,0.00038904,120]
[336727264,1725085151117,-500.0,0.00038904,120]
[336727265,1725085151161,-1863.91,0.00038904,120]
[336727266,1725085151207,-500.0,0.00038904,120]
[336727267,1725085151258,-500.0,0.00038904,120]
[336727268,1725085151305,-3941.89,0.00038904,120]
[336727269,1725085151356,-2607.82,0.00038904,120]
[336727270,1725085151401,-500.0,0.00038904,120]
[336727271,1725085151446,-500.0,0.00038904,120]
[336727272,1725085151490,-1652.24,0.00038904,120]
[336727273,1725085151533,-641.76,0.00038904,120]
[336727274,1725085151583,-3058.12,0.00038904,120]
[336727275,1725085151632,-854.31,0.00038904,120]
[336727276,1725085151678,-500.0,0.00038904,120]
[336727277,1725085151732,-500.0,0.00038904,120]
[336727278,1725085151774,-3298.68,0.00038904,120]
[336727279,1725085151818,-527.05,0.00038904,120]
[336727280,1725085151861,-1830.04,0.00038904,120]
[336727281,1725085151906,-500.0,0.00038904,120]
[336727282,1725085151949,-500.0,0.00038904,120]
[336727283,1725085151993,-500.0,0.00038904,120]
[336727284,1725085152034,-500.0,0.00038904,120]
[336727285,1725085152078,-3711.8,0.00038904,120]
[336727286,1725085152115,-616.77,0.00038904,120]
[336727287,1725085152156,-2261.76,0.00038904,120]
[336727288,1725085152198,-956.29,0.00038904,120]
[336727289,1725085152239,-500.0,0.00038904,120]
[336727290,1725085152282,-507.97744765,0.00038904,120]
[336727291,1725085152326,-500.0,0.00038904,120]
[336727292,1725085152371,-500.0,0.00038904,120]
[336727293,1725085152413,-3724.98,0.00038904,120]
[336727294,1725085152455,-675.48,0.00038904,120]
[336727295,1725085152497,-500.0,0.00038904,120]
[336727296,1725085152538,-500.0,0.00038904,120]
[336727297,1725085152579,-500.0,0.00038904,120]
[336727298,1725085152622,-500.0,0.00038904,120]
[336727299,1725085152664,-979.96,0.00038904,120]
[336727300,1725085152706,-532.04,0.00038904,120]
[336727301,1725085152747,-1078.05,0.00038904,120]
[336727302,1725085152792,-1120.41,0.00038904,120]
[336727303,1725085152833,-1968.69,0.00038904,120]
[336727304,1725085152876,-4649.47,0.00038904,120]
[336727305,1725085152916,-528.35,0.00038904,120]
[336727306,1725085152959,-500.0,0.00038904,120]
[336727307,1725085153004,-9499.71,0.00038904,120]
[336727308,1725085153047,-500.0,0.00038904,120]
[336727309,1725085153091,-500.0,0.00038904,120]
[336727310,1725085153130,-500.0,0.00038904,120]
[336727311,1725085153294,-2023.94,0.00038904,120]
[336727312,1725085153356,-500.0,0.00038904,120]
[336727313,1725085153401,-1332.09,0.00038904,120]
[336727314,1725085153450,-500.0,0.00038904,120]
[336727315,1725085153498,-876.79,0.00038904,120]
[336727316,1725085153546,-500.0,0.00038904,120]
[336727317,1725085153591,-1367.12,0.00038904,120]
[336727318,1725085153640,-500.0,0.00038904,120]
[336727319,1725085153689,-2302.97,0.00038904,120]
[336727320,1725085153732,-2989.98,0.00038904,120]
[336727321,1725085153780,-500.0,0.00038904,120]
[336727322,1725085153828,-1307.87,0.00038904,120]
[336727323,1725085153876,-500.0,0.00038904,120]
[336727324,1725085153922,-26611.03,0.00038904,120]
[336727325,1725085153969,-500.0,0.00038904,120]
[336727326,1725085154016,-1296.01,0.00038904,120]
[336727327,1725085154060,-1533.32,0.00038904,120]
[336727328,1725085154105,-4152.87,0.00038904,120]
[336727329,1725085154149,-500.0,0.00038904,120]
[336727330,1725085154195,-500.0,0.00038904,120]
[336727331,1725085154239,-4747.14,0.00038904,120]
[336727332,1725085154288,-500.0,0.00038904,120]
[336727333,1725085154332,-600.74,0.00038904,120]
[336727334,1725085154376,-5814.25,0.00038904,120]
[336727335,1725085154422,-13203.24,0.00038904,120]
[336727336,1725085154466,-629.87,0.00038904,120]
[336727337,1725085154510,-1062.71,0.00038904,120]
[336727338,1725085154553,-533.34,0.00038904,120]
[336727339,1725085154596,-1824.21,0.00038904,120]
[336727340,1725085154644,-1015.22,0.00038904,120]
[336727341,1725085154688,-500.0,0.00038904,120]
[336727342,1725085154733,-500.0,0.00038904,120]
[336727343,1725085154778,-556.63474915,0.00038904,120]
[336727344,1725085154834,-6986.18,0.00038904,120]
[336727345,1725085154880,-500.0,0.00038904,120]
[336727346,1725085154923,-951.23,0.00038904,120]
[336727347,1725085154971,-5481.44,0.00038904,120]
[336727348,1725085155017,-894.49,0.00038904,120]
[336727349,1725085155063,-842.88,0.00038904,120]
[336727350,1725085155110,-500.0,0.00038904,120]
[336727351,1725085155156,-500.0,0.00038904,120]
[336727352,1725085155202,-4799.76,0.00038904,120]
[336727353,1725085155250,-500.0,0.00038904,120]
[336727354,1725085155297,-677.22,0.00038904,120]
[336727355,1725085155344,-1186.34,0.00038904,120]
[336727356,1725085155394,-500.0,0.00038904,120]
[336727357,1725085155442,-500.0,0.00038904,120]
[336727358,1725085155492,-767.11,0.00038904,120]
[336727359,1725085155543,-5075.61,0.00038904,120]
[336727360,1725085155591,-356.48614146,0.00038904,120]
[336727361,1725085155645,-500.0,0.00038904,120]
[336727362,1725085155694,-500.0,0.00038904,120]
[336727363,1725085155740,-862.19,0.00038904,120]
[336727364,1725085155790,-500.0,0.00038904,120]
[336727365,1725085155841,-528.15,0.00038904,120]
[336727366,1725085155891,-562.28,0.00038904,120]
[336727367,1725085155940,-1245.25,0.00038904,120]
[336727368,1725085155987,-825.37,0.00038904,120]
[336727369,1725085156038,-1653.61,0.00038904,120]
[336727370,1725085156084,-1753.96,0.00038904,120]
[336727371,1725085156132,-2000.96,0.00038904,120]
[336727372,1725085156179,-500.0,0.00038904,120]
[336727373,1725085156227,-1013.59,0.00038904,120]
[336727374,1725085156275,-500.0,0.00038904,120]
[336727375,1725085156321,-1776.62,0.00038904,120]
[336727376,1725085156368,-500.0,0.00038904,120]
[336727377,1725085156416,-500.0,0.00038904,120]
[336727378,1725085156460,-3566.1,0.00038904,120]
[336727379,1725085156506,-500.0,0.00038904,120]
[336727380,1725085156554,-505.96749175,0.00038904,120]
[336727381,1725085156601,-3910.3,0.00038904,120]
[336727382,1725085156647,-1570.05,0.00038904,120]
[336727383,1725085156690,-764.94,0.00038904,120]
[336727384,1725085156732,-500.0,0.00038904,120]
[336727385,1725085156775,-500.0,0.00038904,120]
[336727386,1725085156823,-500.0,0.00038904,120]
[336727387,1725085156868,-500.0,0.00038904,120]
[336727388,1725085156909,-500.0,0.00038904,120]
[336727389,1725085156950,-500.0,0.00038904,120]
[336727390,1725085156991,-519.84722118,0.00038904,120]
[336727391,1725085157032,-500.0,0.00038904,120]
[336727392,1725085157075,-883.9,0.00038904,120]
[336727393,1725085157116,-431.52792107,0.00038904,120]
[336727394,1725085157156,-500.0,0.00038904,120]
[336727395,1725085157197,-696.93,0.00038904,120]
[336727396,1725085157237,-500.0,0.00038904,120]
[336727397,1725085157278,-500.0,0.00038904,120]
[336727398,1725085157318,-500.0,0.00038904,120]
[336727399,1725085157359,-500.0,0.00038904,120]
[336727400,1725085157401,-500.0,0.00038904,120]
[336727401,1725085157730,-1372.32,0.00038904,120]
[336727402,1725085157773,-500.0,0.00038904,120]
[336727403,1725085157824,-833.92,0.00038904,120]
[336727404,1725085157866,-500.0,0.00038904,120]
[336727405,1725085157908,-3784.25,0.00038904,120]
[336727406,1725085157952,-500.0,0.00038904,120]
[336727407,1725085157996,-664.41,0.00038904,120]
[336727408,1725085158038,-500.0,0.00038904,120]
[336727409,1725085158082,-3255.01,0.00038904,120]
[336727410,1725085158122,-1438.05,0.00038904,120]
[336727411,1725085158165,-500.0,0.00038904,120]
[336727412,1725085158210,-863.53,0.00038904,120]
[336727413,1725085158255,-151.0,0.00038986,120]
[336727414,1725085158304,-600.0,0.00039,120]
[336727415,1725085158352,-600.0,0.00039,120]
[336727416,1725085158400,-600.0,0.00039,120]
[336727417,1725085158456,-600.0,0.00039,120]
[336727418,1725085158506,-600.0,0.00039,120]
[336727419,1725085158551,-160.0,0.00039,30]
[336727420,1725085158596,-1211.49109934,0.00039,120]
[336727421,1725085158642,-223.0,0.00039,120]
[336727422,1725085158685,-2055.83,0.00039,32]
[336727423,1725085158737,-150.083107,0.00039098,118]
[336727424,1725085158781,-1000.0,0.00039134,120]
[336727425,1725085158827,-175.70376347,0.000392,30]
[336727426,1725085158869,-1183.36,0.00039208,30]
[336727427,1725085158912,-150.0,0.00039211,120]
[336727428,1725085158956,-150.083107,0.00039298,119]
[336727429,1725085158998,-569.6464583,0.000394,30]
[336727430,1725085159040,-1183.36,0.00039408,30]
[336727431,1725085159082,-1000.0,0.00039428,120]
[336727432,1725085159125,-202.81697994,0.0003944,120]
[336727433,1725085159168,-2142.76,0.00039452,120]
[336727434,1725085159218,-500.0,0.00039452,120]
[336727435,1725085159270,-500.0,0.00039452,120]
[336727436,1725085159318,-500.0,0.00039452,120]
[336727437,1725085159367,-500.0,0.00039452,120]
[336727438,1725085159415,-500.0,0.00039452,120]
[336727439,1725085159459,-500.0,0.00039452,120]
[336727440,1725085159501,-500.0,0.00039452,120]
[336727441,1725085159546,-500.0,0.00039452,120]
[336727442,1725085159590,-500.0,0.00039452,120]
[336727443,1725085159637,-500.0,0.00039452,120]
[336727444,1725085159681,-500.0,0.00039452,120]
[336727445,1725085159725,-500.0,0.00039452,120]
[336727446,1725085159768,-500.0,0.00039452,120]
[336727447,1725085159815,-500.0,0.00039452,120]
[336727448,1725085159857,-500.0,0.00039452,120]
[336727449,1725085159900,-500.0,0.00039452,120]
[336727450,1725085159944,-500.0,0.00039452,120]
[336727451,1725085159989,-500.0,0.00039452,120]
[336727452,1725085160034,-590.23960039,0.00039452,120]
[336727453,1725085160076,-500.0,0.00039452,120]
[336727454,1725085160120,-500.0,0.00039452,120]
[336727455,1725085160167,-500.0,0.00039452,120]
[336727456,1725085160211,-500.0,0.00039452,120]
[336727457,1725085160255,-500.0,0.00039452,120]
[336727458,1725085160298,-500.0,0.00039452,120]
[336727459,1725085160340,-500.0,0.00039452,120]
[336727460,1725085160387,-500.0,0.00039452,120]
[336727461,1725085160433,-500.0,0.00039452,120]
[336727462,1725085160479,-500.0,0.00039452,120]
[336727463,1725085160522,-500.0,0.00039452,120]
[336727464,1725085160567,-500.0,0.00039452,120]
[336727465,1725085160614,-500.0,0.00039452,120]
[336727466,1725085160659,-500.0,0.00039452,120]
[336727467,1725085160706,-500.0,0.00039452,120]
[336727468,1725085160750,-502.46754516,0.00039452,120]
[336727469,1725085160795,-500.0,0.00039452,120]
[336727470,1725085160841,-500.0,0.00039452,120]
[336727471,1725085160886,-500.0,0.00039452,120]
[336727472,1725085160997,-500.0,0.00039452,120]
[336727473,1725085161042,-390.27179227,0.00039452,120]
[336727474,1725085161085,-500.0,0.00039452,120]
[336727475,1725085161130,-500.0,0.00039452,120]
[336727476,1725085161173,-500.0,0.00039452,120]
[336727477,1725085161219,-474.34404596,0.00039452,120]
[336727478,1725085161263,-500.0,0.00039452,120]
[336727479,1725085161306,-434.65012369,0.00039452,120]
[336727480,1725085161350,-500.0,0.00039452,120]
[336727481,1725085161392,-500.0,0.00039452,120]
[336727482,1725085161436,-500.0,0.00039452,120]
[336727483,1725085161477,-543.33,0.00039452,120]
[336727484,1725085161521,-500.0,0.00039452,120]
[336727485,1725085161563,-247.20346252,0.00039452,120]
[336727486,1725085161608,-500.0,0.00039452,120]
[336727487,1725085161655,-500.0,0.00039452,120]
[336727488,1725085161703,-500.0,0.00039452,120]
[336727489,1725085161746,-1222.92,0.00039452,120]
[336727490,1725085161790,-855.57,0.00039452,120]
[336727491,1725085161833,-500.0,0.00039452,120]
[336727492,1725085161876,-500.0,0.00039452,120]
[336727493,1725085161918,-500.0,0.00039452,120]
[336727494,1725085161960,-810.22,0.00039452,120]
[336727495,1725085162002,-705.93,0.00039452,120]
[336727496,1725085162045,-500.0,0.00039452,120]
[336727497,1725085162089,-1236.45,0.00039452,120]
[336727498,1725085162132,-886.41,0.00039452,120]
[336727499,1725085162177,-500.0,0.00039452,120]
[336727500,1725085162223,-500.0,0.00039452,120]
[336727501,1725085162270,-500.0,0.00039452,120]
[336727502,1725085162316,-500.0,0.00039452,120]
[336727503,1725085162362,-500.0,0.00039452,120]
[336727504,1725085162407,-1238.38,0.00039452,120]
[336727505,1725085162454,-500.0,0.00039452,120]
[336727506,1725085162498,-500.0,0.00039452,120]
[336727507,1725085162542,-500.0,0.00039452,120]
[336727508,1725085162587,-937.64,0.00039452,120]
[336727509,1725085162631,-658.82,0.00039452,120]
[336727510,1725085162676,-1245.86,0.00039452,120]
[336727511,1725085162719,-613.16,0.00039452,120]
[336727512,1725085162762,-500.0,0.00039452,120]
[336727513,1725085162808,-500.0,0.00039452,120]
[336727514,1725085162853,-331.03777118,0.00039452,120]
[336727515,1725085162897,-500.0,0.00039452,120]
[336727516,1725085162943,-500.0,0.00039452,120]
[336727517,1725085162987,-2049.36,0.00039452,120]
[336727518,1725085163034,-891.88,0.00039452,120]
[336727519,1725085163077,-500.0,0.00039452,120]
[336727520,1725085163120,-524.66,0.00039452,120]
[336727521,1725085163165,-500.0,0.00039452,120]
[336727522,1725085163209,-879.12,0.00039452,120]
[336727523,1725085163253,-1215.98,0.00039452,120]
[336727524,1725085163296,-500.0,0.00039452,120]
[336727525,1725085163339,-1629.63,0.00039452,120]
[336727526,1725085163385,-500.0,0.00039452,120]
[336727527,1725085163430,-835.48,0.00039452,120]
[336727528,1725085163476,-776.49,0.00039452,120]
[336727529,1725085163519,-518.23,0.00039452,120]
[336727530,1725085163565,-500.0,0.00039452,120]
[336727531,1725085163614,-500.0,0.00039452,120]
[336727532,1725085163662,-500.0,0.00039452,120]
[336727533,1725085163711,-1325.36,0.00039452,120]
[336727534,1725085163756,-165.00000046,0.00039452,120]
[336727535,1725085163805,-500.0,0.00039452,120]
[336727536,1725085163852,-500.0,0.00039452,120]
[336727537,1725085163897,-765.75,0.00039452,120]
[336727538,1725085163943,-500.0,0.00039452,120]
[336727539,1725085163988,-500.0,0.00039452,120]
[336727540,1725085164034,-500.0,0.00039452,120]
[336727541,1725085164078,-367.1028049,0.00039452,120]
[336727542,1725085164126,-500.0,0.00039452,120]
[336727543,1725085164172,-500.0,0.00039452,120]
[336727544,1725085164218,-575.93,0.00039452,120]
[336727545,1725085164272,-156.32086857,0.00039452,120]
[336727546,1725085164322,-500.0,0.00039452,120]
[336727547,1725085164370,-609.15,0.00039452,120]
[336727548,1725085164418,-500.0,0.00039452,120]
[336727549,1725085164466,-500.0,0.00039452,120]
[336727550,1725085164512,-747.99,0.00039452,120]
[336727551,1725085164560,-700.41,0.00039452,120]
[336727552,1725085164607,-500.0,0.00039452,120]
[336727553,1725085164658,-1498.46,0.00039452,120]
[336727554,1725085164706,-500.0,0.00039452,120]
[336727555,1725085164751,-809.33,0.00039452,120]
[336727556,1725085164799,-1339.26,0.00039452,120]
[336727557,1725085164844,-769.1,0.00039452,120]
[336727558,1725085164890,-500.0,0.00039452,120]
[336727559,1725085164936,-152.45054178,0.00039452,120]
[336727560,1725085164981,-500.0,0.00039452,120]
[336727561,1725085165027,-500.0,0.00039452,120]
[336727562,1725085165072,-1446.69,0.00039452,120]
[336727563,1725085165115,-431.72826448,0.00039452,120]
[336727564,1725085165159,-628.45,0.00039452,120]
[336727565,1725085165204,-500.0,0.00039452,120]
[336727566,1725085165248,-1130.55,0.00039452,120]
[336727567,1725085165291,-500.0,0.00039452,120]
[336727568,1725085165333,-500.0,0.00039452,120]
[336727569,1725085165375,-500.0,0.00039452,120]
[336727570,1725085165420,-1495.9,0.00039452,120]
[336727571,1725085165461,-500.0,0.00039452,120]
[336727572,1725085165504,-500.0,0.00039452,120]
[336727573,1725085165548,-500.0,0.00039452,120]
[336727574,1725085165590,-500.0,0.00039452,120]
[336727575,1725085165636,-753.66,0.00039452,120]
[336727576,1725085165680,-982.67,0.00039452,120]
[336727577,1725085165860,-500.0,0.00039452,120]
[336727578,1725085165908,-500.0,0.00039452,120]
[336727579,1725085165955,-1405.14,0.00039452,120]
[336727580,1725085165999,-500.0,0.00039452,120]
[336727581,1725085166047,-500.0,0.00039452,120]
[336727582,1725085166092,-500.0,0.00039452,120]
[336727583,1725085166139,-1842.35,0.00039452,120]
[336727584,1725085166184,-500.0,0.00039452,120]
[336727585,1725085166231,-1418.4,0.00039452,120]
[336727586,1725085166275,-1938.68,0.00039452,120]
[336727587,1725085166321,-1335.5,0.00039452,120]
[336727588,1725085166369,-500.0,0.00039452,120]
[336727589,1725085166413,-500.0,0.00039452,120]
[336727590,1725085166459,-500.0,0.00039452,120]
[336727591,1725085166503,-1753.74,0.00039452,120]
[336727592,1725085166546,-1761.1,0.00039452,120]
[336727593,1725085166591,-1409.66,0.00039452,120]
[336727594,1725085166635,-1768.43,0.00039452,120]
[336727595,1725085166677,-500.0,0.00039452,120]
[336727596,1725085166720,-1240.37,0.00039452,120]
[336727597,1725085166760,-1945.17,0.00039452,120]
[336727598,1725085166802,-500.0,0.00039452,120]
[336727599,1725085166845,-1722.76,0.00039452,120]
[336727600,1725085166889,-500.0,0.00039452,120]
[336727601,1725085166931,-500.0,0.00039452,120]
[336727602,1725085166976,-500.0,0.00039452,120]
[336727603,1725085167018,-500.0,0.00039452,120]
[336727604,1725085167060,-500.0,0.00039452,120]
[336727605,1725085167102,-500.0,0.00039452,120]
[336727606,1725085167142,-600.0,0.00039452,120]
[336727607,1725085167187,-1401.27,0.00039452,120]
[336727608,1725085167235,-500.0,0.00039452,120]
[336727609,1725085167282,-500.0,0.00039452,120]
[336727610,1725085167329,-970.41,0.00039452,120]
[336727611,1725085167376,-500.0,0.00039452,120]
[336727612,1725085167424,-723.51,0.00039452,120]
[336727613,1725085167467,-445.17857841,0.00039452,120]
[336727614,1725085167511,-1854.24,0.00039452,120]
[336727615,1725085167553,-500.0,0.00039452,120]
[336727616,1725085167600,-500.0,0.00039452,120]
[336727617,1725085167645,-500.0,0.00039452,120]
[336727618,1725085167688,-500.0,0.00039452,120]
[336727619,1725085167733,-500.0,0.00039452,120]
[336727620,1725085167778,-1254.2,0.00039452,120]
[336727621,1725085167827,-500.0,0.00039452,120]
[336727622,1725085167872,-620.01,0.00039452,120]
[336727623,1725085167915,-318.18882543,0.00039452,120]
[336727624,1725085167960,-801.96,0.00039452,120]
[336727625,1725085168004,-500.0,0.00039452,120]
[336727626,1725085168047,-500.0,0.00039452,120]
[336727627,1725085168091,-1627.22,0.00039452,120]
[336727628,1725085168138,-2064.59,0.00039452,120]
[336727629,1725085168181,-500.0,0.00039452,120]
[336727630,1725085168228,-500.0,0.00039452,120]
[336727631,1725085168273,-500.0,0.00039452,120]
[336727632,1725085168319,-772.05,0.00039452,120]
[336727633,1725085168366,-1027.78,0.00039452,120]
[336727634,1725085168412,-1831.01,0.00039452,120]
[336727635,1725085168457,-1126.23,0.00039452,120]
[336727636,1725085168506,-500.0,0.00039452,120]
[336727637,1725085168554,-1397.22,0.00039452,120]
[336727638,1725085168599,-500.0,0.00039452,120]
[336727639,1725085168646,-500.0,0.00039452,120]
[336727640,1725085168690,-2041.23599699,0.00039452,42]
[336727641,1725085168737,-2245.78,0.00039452,120]
[336727642,1725085168783,-1400.18,0.00039452,120]
[336727643,1725085168829,-1570.65,0.00039452,120]
[336727644,1725085168875,-500.0,0.00039452,120]
[336727645,1725085168920,-1175.43,0.00039452,120]
[336727646,1725085168964,-1552.31,0.00039452,120]
[336727647,1725085169011,-597.39973305,0.00039452,120]
[336727648,1725085169055,-2597.83,0.00039452,120]
[336727649,1725085169100,-500.0,0.00039452,120]
[336727650,1725085169146,-2288.82,0.00039452,120]
[336727651,1725085169194,-770.3,0.00039452,120]
[336727652,1725085169241,-938.14,0.00039452,120]
[336727653,1725085169288,-500.0,0.00039452,120]
[336727654,1725085169336,-500.0,0.00039452,120]
[336727655,1725085169384,-1094.23,0.00039452,120]
[336727656,1725085169429,-2461.74,0.00039452,120]
[336727657,1725085169476,-1035.53,0.00039452,120]
[336727658,1725085169523,-2000.0,0.00039452,120]
[336727659,1725085169573,-500.0,0.00039452,120]
[336727660,1725085169625,-2000.0,0.00039452,30]
[336727661,1725085169672,-500.0,0.00039452,120]
[336727662,1725085169718,-1952.23,0.00039452,120]
[336727663,1725085169764,-744.82,0.00039452,120]
[336727664,1725085169811,-414.54802506,0.00039452,120]
[336727665,1725085169857,-500.0,0.00039452,120]
[336727666,1725085170194,-351.02716991,0.00039452,120]
[336727667,1725085170241,-1416.07,0.00039452,120]
[336727668,1725085170286,-500.0,0.00039452,120]
[336727669,1725085170330,-500.0,0.00039452,120]
[336727670,1725085170373,-500.0,0.00039452,120]
[336727671,1725085170417,-500.0,0.00039452,120]
[336727672,1725085170464,-696.59,0.00039452,120]
[336727673,1725085170509,-673.61,0.00039452,120]
[336727674,1725085170555,-150.0,0.00039452,120]
[336727675,1725085170605,-1520.87,0.00039452,120]
[336727676,1725085170654,-500.0,0.00039452,120]
[336727677,1725085170702,-1387.42,0.00039452,120]
[336727678,1725085170746,-1762.52,0.00039452,120]
[336727679,1725085170796,-582.5,0.00039452,120]
[336727680,1725085170842,-500.0,0.00039452,120]
[336727681,1725085170886,-500.0,0.00039452,120]
[336727682,1725085170934,-531.38,0.00039452,120]
[336727683,1725085170983,-2558.85,0.00039452,120]
[336727684,1725085171032,-1554.54,0.00039452,120]
[336727685,1725085171080,-1271.21,0.00039452,120]
[336727686,1725085171126,-506.46,0.00039452,120]
[336727687,1725085171175,-500.0,0.00039452,120]
[336727688,1725085171226,-643.75,0.00039452,120]
[336727689,1725085171275,-500.0,0.00039452,120]
[336727690,1725085171320,-500.0,0.00039452,120]
[336727691,1725085171370,-500.0,0.00039452,120]
[336727692,1725085171418,-500.0,0.00039452,120]
[336727693,1725085171462,-1987.17,0.00039452,120]
[336727694,1725085171509,-525.09,0.00039452,120]
[336727695,1725085171557,-500.0,0.00039452,120]
[336727696,1725085171607,-1315.89,0.00039452,120]
[336727697,1725085171657,-917.3,0.00039452,120]
[336727698,1725085171704,-2037.73,0.00039452,120]
[336727699,1725085171746,-5391.87,0.00039452,120]
[336727700,1725085171793,-500.0,0.00039452,120]
[336727701,1725085171838,-264.42125855,0.00039452,120]
[336727702,1725085171885,-500.0,0.00039452,120]
[336727703,1725085171931,-500.0,0.00039452,120]
[336727704,1725085171980,-2115.98,0.00039452,120]
[336727705,1725085172026,-2174.79,0.00039452,120]
[336727706,1725085172073,-500.0,0.00039452,120]
[336727707,1725085172119,-996.95,0.00039452,120]
[336727708,1725085172164,-500.0,0.00039452,120]
[336727709,1725085172208,-455.86848389,0.00039452,120]
[336727710,1725085172251,-2121.2,0.00039452,120]
[336727711,1725085172298,-727.36,0.00039452,120]
[336727712,1725085172344,-696.4,0.00039452,120]
[336727713,1725085172387,-500.0,0.00039452,120]
[336727714,1725085172433,-710.96,0.00039452,120]
[336727715,1725085172481,-803.74,0.00039452,120]
[336727716,1725085172524,-5781.55,0.00039452,120]
[336727717,1725085172570,-748.83,0.00039452,120]
[336727718,1725085172617,-500.0,0.00039452,120]
[336727719,1725085172662,-500.0,0.00039452,120]
[336727720,1725085172707,-500.0,0.00039452,120]
[336727721,1725085172751,-500.0,0.00039452,120]
[336727722,1725085172795,-1783.82,0.00039452,120]
[336727723,1725085172841,-500.0,0.00039452,120]
[336727724,1725085172885,-500.0,0.00039452,120]
[336727725,1725085172928,-1686.38,0.00039452,120]
[336727726,1725085172974,-2304.84,0.00039452,120]
[336727727,1725085173018,-568.05,0.00039452,120]
[336727728,1725085173062,-577.41948547,0.00039452,120]
[336727729,1725085173110,-1168.88,0.00039452,120]
[336727730,1725085173158,-761.86,0.00039452,120]
[336727731,1725085173210,-4742.16,0.00039452,120]
[336727732,1725085173261,-3878.16,0.00039452,120]